[Event "Late-Titled-Tuesday-Blitz-January-16-2024"]
[Site "Chess.com"]
[Date "2024.01.16"]
[Round "6"]
[White "LevonAronian"]
[Black "rezamahdavi2008"]
[Result "1/2-1/2"]
[WhiteElo "3089"]
[BlackElo "2870"]
[TimeControl "180+1"]
[EndTime "15:06:14 PST"]
[Termination "Game drawn by repetition"]

1. e4 {[%clk 0:03:00.9]} 1... c5 {[%clk 0:02:52.9]} 2. Nf3 {[%clk 0:03:00.5]}
2... d6 {[%clk 0:02:52.3]} 3. c3 {[%clk 0:02:59.8]} 3... Nf6 {[%clk 0:02:52.6]}
4. Be2 {[%clk 0:03:00.4]} 4... g6 {[%clk 0:02:51.1]} 5. O-O {[%clk 0:03:00.5]}
5... Bg7 {[%clk 0:02:51.8]} 6. d3 {[%clk 0:03:01.2]} 6... O-O {[%clk 0:02:52.3]}
7. Be3 {[%clk 0:03:01.9]} 7... Nc6 {[%clk 0:02:52.1]} 8. Nbd2 {[%clk 0:03:02.6]}
8... Ng4 {[%clk 0:02:51.1]} 9. Bg5 {[%clk 0:03:02.8]} 9... h6 {[%clk 0:02:49.4]}
10. Bh4 {[%clk 0:03:03.1]} 10... Rb8 {[%clk 0:02:49.1]} 11. d4 {[%clk
0:03:02.3]} 11... cxd4 {[%clk 0:02:48.7]} 12. cxd4 {[%clk 0:03:02.6]} 12... Bd7
{[%clk 0:02:44.4]} 13. d5 {[%clk 0:02:59.3]} 13... Nce5 {[%clk 0:02:27.2]} 14.
Nxe5 {[%clk 0:02:51.3]} 14... Nxe5 {[%clk 0:02:28.1]} 15. f4 {[%clk 0:02:51.9]}
15... g5 {[%clk 0:02:27.3]} 16. fxg5 {[%clk 0:02:50.9]} 16... Ng6 {[%clk
0:02:23.7]} 17. gxh6 {[%clk 0:02:50.7]} 17... Bxb2 {[%clk 0:02:24]} 18. Rb1
{[%clk 0:02:41.4]} 18... Bd4+ {[%clk 0:02:19.9]} 19. Bf2 {[%clk 0:02:41.2]}
19... Bxf2+ {[%clk 0:02:19.3]} 20. Rxf2 {[%clk 0:02:41.3]} 20... Qa5 {[%clk
0:02:18.5]} 21. Bh5 {[%clk 0:02:21.9]} 21... Qc5 {[%clk 0:01:37.4]} 22. Rb3
{[%clk 0:02:03.7]} 22... Kh7 {[%clk 0:01:29.9]} 23. Bxg6+ {[%clk 0:01:45.1]}
23... fxg6 {[%clk 0:01:30]} 24. Nf3 {[%clk 0:01:45.3]} 24... Ba4 {[%clk
0:01:28.4]} 25. Qa1 {[%clk 0:01:44.3]} 25... Kxh6 {[%clk 0:01:22.7]} 26. Rc3
{[%clk 0:01:42.4]} 26... Qb6 {[%clk 0:01:23.1]} 27. Nd4 {[%clk 0:01:24.2]} 27...
Bd7 {[%clk 0:01:09.7]} 28. Rb3 {[%clk 0:01:14.9]} 28... Qc5 {[%clk 0:01:09.8]}
29. Rc2 {[%clk 0:01:14]} 29... Qa5 {[%clk 0:01:06.6]} 30. Nf5+ {[%clk
0:00:59.1]} 30... gxf5 {[%clk 0:00:33]} 31. Rh3+ {[%clk 0:00:58.7]} 31... Kg6
{[%clk 0:00:33.3]} 32. Rg3+ {[%clk 0:00:58.6]} 32... Kf7 {[%clk 0:00:33.5]} 33.
exf5 {[%clk 0:00:48]} 33... Rbc8 {[%clk 0:00:23.7]} 34. Qg7+ {[%clk 0:00:36]}
34... Ke8 {[%clk 0:00:24.1]} 35. Re3 {[%clk 0:00:36.3]} 35... Rf7 {[%clk
0:00:13.4]} 36. Qh8+ {[%clk 0:00:30.2]} 36... Rf8 {[%clk 0:00:13.7]} 37. Rxe7+
{[%clk 0:00:30.4]} 37... Kxe7 {[%clk 0:00:10.9]} 38. Re2+ {[%clk 0:00:31.1]}
38... Kd8 {[%clk 0:00:07.8]} 39. Qxf8+ {[%clk 0:00:30.9]} 39... Kc7 {[%clk
0:00:08.6]} 40. Rc2+ {[%clk 0:00:31.2]} 40... Kb8 {[%clk 0:00:05.5]} 41. Qxd6+
{[%clk 0:00:22.3]} 41... Ka8 {[%clk 0:00:05.7]} 42. Rxc8+ {[%clk 0:00:20.4]}
42... Bxc8 {[%clk 0:00:06.6]} 43. g4 {[%clk 0:00:17.7]} 43... Qxa2 {[%clk
0:00:03.8]} 44. Qc7 {[%clk 0:00:07.6]} 44... Qa1+ {[%clk 0:00:02.6]} 45. Kg2
{[%clk 0:00:06.6]} 45... Qh8 {[%clk 0:00:03.3]} 46. d6 {[%clk 0:00:05.3]} 46...
Qe8 {[%clk 0:00:03.7]} 47. h4 {[%clk 0:00:05]} 47... Bd7 {[%clk 0:00:04.3]} 48.
Kf3 {[%clk 0:00:03.8]} 48... Bc6+ {[%clk 0:00:03.1]} 49. Kf4 {[%clk 0:00:04.4]}
49... a6 {[%clk 0:00:02.1]} 50. Qe7 {[%clk 0:00:03]} 50... Qh8 {[%clk
0:00:01.7]} 51. f6 {[%clk 0:00:03.2]} 51... Qh6+ {[%clk 0:00:01.5]} 52. Kg3
{[%clk 0:00:02.6]} 52... Qd2 {[%clk 0:00:01.2]} 53. f7 {[%clk 0:00:02.9]} 53...
Ka7 {[%clk 0:00:02.1]} 54. f8=Q {[%clk 0:00:03]} 54... Qg2+ {[%clk 0:00:02]} 55.
Kf4 {[%clk 0:00:03.5]} 55... Qd2+ {[%clk 0:00:02.5]} 56. Kf5 {[%clk 0:00:03.8]}
56... Qd3+ {[%clk 0:00:03]} 57. Kg5 {[%clk 0:00:04.4]} 57... Qd2+ {[%clk
0:00:03.3]} 58. Qf4 {[%clk 0:00:04.8]} 58... Qd5+ {[%clk 0:00:03.9]} 59. Qee5
{[%clk 0:00:05.2]} 59... Qg8+ {[%clk 0:00:04.5]} 60. Kf5 {[%clk 0:00:05.6]}
60... Qh7+ {[%clk 0:00:04.9]} 61. Kf6 {[%clk 0:00:04.1]} 61... Qh8+ {[%clk
0:00:05.6]} 62. Ke7 {[%clk 0:00:04.5]} 62... Qe8+ {[%clk 0:00:05.6]} 63. Kf6
{[%clk 0:00:04.7]} 63... Qh8+ {[%clk 0:00:06.3]} 64. Kg6 {[%clk 0:00:05.1]}
64... Be8+ {[%clk 0:00:04.8]} 65. Qxe8 {[%clk 0:00:03.9]} 65... Qxe8+ {[%clk
0:00:05.7]} 66. Qf7 {[%clk 0:00:02.8]} 66... Qe4+ {[%clk 0:00:05.5]} 67. Qf5
{[%clk 0:00:03.2]} 67... Qe8+ {[%clk 0:00:05.8]} 68. Kg5 {[%clk 0:00:03.8]}
68... Qd8+ {[%clk 0:00:06.4]} 69. Qf6 {[%clk 0:00:04]} 69... Qa5+ {[%clk
0:00:07.1]} 70. Kh6 {[%clk 0:00:04.2]} 70... Qd2+ {[%clk 0:00:07]} 71. g5 {[%clk
0:00:04.2]} 71... a5 {[%clk 0:00:07.7]} 72. Kh7 {[%clk 0:00:03.7]} 72... a4
{[%clk 0:00:08.1]} 73. g6 {[%clk 0:00:04.3]} 73... Qd3 {[%clk 0:00:06.2]} 74.
Kh8 {[%clk 0:00:04.3]} 74... Qd5 {[%clk 0:00:03.7]} 75. Kg7 {[%clk 0:00:02.6]}
75... a3 {[%clk 0:00:02.6]} 76. Qf2+ {[%clk 0:00:03]} 76... Ka8 {[%clk
0:00:02.9]} 77. Qf8+ {[%clk 0:00:02.7]} 77... Ka7 {[%clk 0:00:03.3]} 78. Qf2+
{[%clk 0:00:03.4]} 78... Ka8 {[%clk 0:00:03.8]} 79. Qg3 {[%clk 0:00:02.9]} 79...
a2 {[%clk 0:00:03]} 80. Qa3+ {[%clk 0:00:01.7]} 80... Kb8 {[%clk 0:00:03.6]} 81.
h5 {[%clk 0:00:02.3]} 81... Qe5+ {[%clk 0:00:04]} 82. Kh6 {[%clk 0:00:02.8]}
82... a1=Q {[%clk 0:00:04.9]} 83. Qxa1 {[%clk 0:00:02.4]} 83... Qxa1 {[%clk
0:00:05.8]} 84. g7 {[%clk 0:00:02.8]} 84... Qf6+ {[%clk 0:00:06.1]} 85. Kh7
{[%clk 0:00:03.4]} 85... Qf7 {[%clk 0:00:06.7]} 86. h6 {[%clk 0:00:03.8]} 86...
Kc8 {[%clk 0:00:05.2]} 87. Kh8 {[%clk 0:00:04.4]} 87... Qf6 {[%clk 0:00:03.5]}
88. Kh7 {[%clk 0:00:05]} 88... Qf5+ {[%clk 0:00:03.2]} 89. Kh8 {[%clk
0:00:05.6]} 89... Qe5 {[%clk 0:00:03.5]} 90. Kh7 {[%clk 0:00:06.3]} 90... Qe4+
{[%clk 0:00:03.6]} 91. Kh8 {[%clk 0:00:06.7]} 91... Qd4 {[%clk 0:00:03.9]} 92.
Kh7 {[%clk 0:00:07.2]} 92... Qe4+ {[%clk 0:00:02.1]} 93. Kh8 {[%clk 0:00:07.8]}
93... Qe5 {[%clk 0:00:02.9]} 94. Kh7 {[%clk 0:00:08.3]} 94... Qf5+ {[%clk
0:00:03.6]} 95. Kh8 {[%clk 0:00:08.8]} 95... Qf6 {[%clk 0:00:04]} 96. Kh7 {[%clk
0:00:09.3]} 96... Qf7 {[%clk 0:00:03.7]} 97. Kh8 {[%clk 0:00:09.9]} 97... Qf6
{[%clk 0:00:02.4]} 1/2-1/2

[Event "Late-Titled-Tuesday-Blitz-January-16-2024"]
[Site "Chess.com"]
[Date "2024.01.16"]
[Round "7"]
[White "MathiasWomacka"]
[Black "MasterofMasters2006"]
[Result "1-0"]
[WhiteElo "2548"]
[BlackElo "2246"]
[TimeControl "180+1"]
[EndTime "15:12:21 PST"]
[Termination "MathiasWomacka won by resignation"]

1. e4 {[%clk 0:03:00.9]} 1... e5 {[%clk 0:02:54.6]} 2. Nf3 {[%clk 0:03:01.2]}
2... Nc6 {[%clk 0:02:53.7]} 3. Bb5 {[%clk 0:03:01.7]} 3... a6 {[%clk 0:02:53.8]}
4. Bxc6 {[%clk 0:03:00.9]} 4... dxc6 {[%clk 0:02:54.7]} 5. O-O {[%clk
0:02:59.7]} 5... f6 {[%clk 0:02:54.7]} 6. d4 {[%clk 0:02:57.3]} 6... exd4 {[%clk
0:02:55.6]} 7. Nxd4 {[%clk 0:02:56.7]} 7... c5 {[%clk 0:02:55.4]} 8. Ne2 {[%clk
0:02:56.2]} 8... Qxd1 {[%clk 0:02:56.3]} 9. Rxd1 {[%clk 0:02:56.2]} 9... Bd6
{[%clk 0:02:54.2]} 10. Bf4 {[%clk 0:02:54.2]} 10... Bxf4 {[%clk 0:02:53.3]} 11.
Nxf4 {[%clk 0:02:55.1]} 11... Ne7 {[%clk 0:02:52.1]} 12. Nc3 {[%clk 0:02:52.6]}
12... c6 {[%clk 0:02:51.2]} 13. Na4 {[%clk 0:02:37.6]} 13... O-O {[%clk
0:02:47.6]} 14. Nxc5 {[%clk 0:02:32.8]} 14... Kf7 {[%clk 0:02:45.4]} 15. Nd7
{[%clk 0:02:25.3]} 15... Bxd7 {[%clk 0:02:43]} 16. Rxd7 {[%clk 0:02:25.9]} 16...
Rfd8 {[%clk 0:02:29.3]} 17. Rad1 {[%clk 0:02:23]} 17... Ke8 {[%clk 0:02:29.4]}
18. Rxd8+ {[%clk 0:02:19.3]} 18... Rxd8 {[%clk 0:02:30.3]} 19. Rxd8+ {[%clk
0:02:18.6]} 19... Kxd8 {[%clk 0:02:31.2]} 20. Ne6+ {[%clk 0:02:18.2]} 1-0

[Event "Late-Titled-Tuesday-Blitz-January-16-2024"]
[Site "Chess.com"]
[Date "2024.01.16"]
[Round "7"]
[White "Too_Stupid_To_Play"]
[Black "santosalberto1987"]
[Result "0-1"]
[WhiteElo "2306"]
[BlackElo "2491"]
[TimeControl "180+1"]
[EndTime "15:13:00 PST"]
[Termination "santosalberto1987 won by resignation"]

1. d4 {[%clk 0:02:59.5]} 1... Nf6 {[%clk 0:02:58.7]} 2. Bf4 {[%clk 0:02:59.6]}
2... g6 {[%clk 0:02:57.6]} 3. Nc3 {[%clk 0:02:58.8]} 3... d5 {[%clk 0:02:56.2]}
4. e3 {[%clk 0:02:58.9]} 4... Bg7 {[%clk 0:02:56.1]} 5. h4 {[%clk 0:02:59.2]}
5... c5 {[%clk 0:02:46.5]} 6. h5 {[%clk 0:02:56.8]} 6... Nxh5 {[%clk 0:02:45.1]}
7. Rxh5 {[%clk 0:02:54.7]} 7... gxh5 {[%clk 0:02:45.1]} 8. Qxh5 {[%clk 0:02:55]}
8... e6 {[%clk 0:02:41.8]} 9. O-O-O {[%clk 0:02:53.4]} 9... cxd4 {[%clk
0:02:37.7]} 10. exd4 {[%clk 0:02:51.6]} 10... a6 {[%clk 0:02:35.9]} 11. Nf3
{[%clk 0:02:48.8]} 11... Nc6 {[%clk 0:02:35.9]} 12. Ng5 {[%clk 0:02:46.1]} 12...
Qf6 {[%clk 0:02:31.7]} 13. Be5 {[%clk 0:02:42.8]} 13... Nxe5 {[%clk 0:02:28.8]}
14. dxe5 {[%clk 0:02:43.7]} 14... Qg6 {[%clk 0:02:12.7]} 15. Qh4 {[%clk
0:02:34.4]} 15... Bxe5 {[%clk 0:02:07.2]} 16. Bd3 {[%clk 0:02:30.3]} 16... Qg7
{[%clk 0:02:06.8]} 17. Na4 {[%clk 0:02:16.8]} 17... Bf6 {[%clk 0:02:00.5]} 18.
f4 {[%clk 0:02:14.9]} 18... h6 {[%clk 0:01:56.5]} 19. Rh1 {[%clk 0:02:14.8]}
19... hxg5 {[%clk 0:01:54.2]} 0-1

[Event "Late-Titled-Tuesday-Blitz-January-16-2024"]
[Site "Chess.com"]
[Date "2024.01.16"]
[Round "7"]
[White "Matrix3x3a"]
[Black "djano"]
[Result "0-1"]
[WhiteElo "2471"]
[BlackElo "2632"]
[TimeControl "180+1"]
[EndTime "15:13:46 PST"]
[Termination "djano won by resignation"]

1. d4 {[%clk 0:03:00.9]} 1... Nf6 {[%clk 0:02:59.6]} 2. c4 {[%clk 0:03:00.8]}
2... g6 {[%clk 0:03:00.2]} 3. Nc3 {[%clk 0:03:00.6]} 3... d5 {[%clk 0:02:59.7]}
4. cxd5 {[%clk 0:03:01.5]} 4... Nxd5 {[%clk 0:02:59.7]} 5. e4 {[%clk 0:02:58.9]}
5... Nxc3 {[%clk 0:03:00]} 6. bxc3 {[%clk 0:02:59.8]} 6... Bg7 {[%clk
0:03:00.5]} 7. Bc4 {[%clk 0:02:58.5]} 7... O-O {[%clk 0:03:00.5]} 8. Ne2 {[%clk
0:02:59.4]} 8... Nc6 {[%clk 0:02:59.8]} 9. Be3 {[%clk 0:03:00.3]} 9... Na5
{[%clk 0:03:00.1]} 10. Bd3 {[%clk 0:02:57.1]} 10... c5 {[%clk 0:03:00.5]} 11.
O-O {[%clk 0:02:56]} 11... b6 {[%clk 0:03:00.8]} 12. d5 {[%clk 0:02:29]} 12...
e6 {[%clk 0:02:58.6]} 13. c4 {[%clk 0:02:19.8]} 13... exd5 {[%clk 0:02:56.8]}
14. exd5 {[%clk 0:02:15.2]} 14... Re8 {[%clk 0:02:47.6]} 15. Rc1 {[%clk
0:02:12]} 15... Nb7 {[%clk 0:02:42.3]} 16. Ng3 {[%clk 0:02:09.4]} 16... Nd6
{[%clk 0:02:42.4]} 17. Qd2 {[%clk 0:02:08.7]} 17... f5 {[%clk 0:02:41.5]} 18.
Bg5 {[%clk 0:02:06.8]} 18... Bf6 {[%clk 0:02:38.8]} 19. Bxf6 {[%clk 0:02:06.5]}
19... Qxf6 {[%clk 0:02:39.7]} 20. Rfe1 {[%clk 0:02:03.6]} 20... Bd7 {[%clk
0:02:39.3]} 21. Nf1 {[%clk 0:01:46.1]} 21... Qd4 {[%clk 0:02:30.6]} 22. Qc2
{[%clk 0:01:39.3]} 22... Kg7 {[%clk 0:02:17.9]} 23. Nd2 {[%clk 0:01:38.5]} 23...
Rxe1+ {[%clk 0:02:12.4]} 24. Rxe1 {[%clk 0:01:36.2]} 24... Re8 {[%clk
0:02:13.3]} 25. Rxe8 {[%clk 0:01:35]} 25... Bxe8 {[%clk 0:02:14.2]} 26. Nf3
{[%clk 0:01:30.8]} 26... Qa1+ {[%clk 0:02:12.1]} 27. Qb1 {[%clk 0:01:29.7]}
27... Qxb1+ {[%clk 0:02:11.7]} 28. Bxb1 {[%clk 0:01:30]} 28... Nxc4 {[%clk
0:02:12.4]} 0-1

[Event "Late-Titled-Tuesday-Blitz-January-16-2024"]
[Site "Chess.com"]
[Date "2024.01.16"]
[Round "7"]
[White "SanchezKelvin"]
[Black "szachmistrz2500"]
[Result "0-1"]
[WhiteElo "2552"]
[BlackElo "2443"]
[TimeControl "180+1"]
[EndTime "15:14:22 PST"]
[Termination "szachmistrz2500 won by resignation"]

1. e4 {[%clk 0:02:54.4]} 1... c5 {[%clk 0:02:59.9]} 2. Nf3 {[%clk 0:02:54.1]}
2... d6 {[%clk 0:03:00.1]} 3. d4 {[%clk 0:02:53.7]} 3... cxd4 {[%clk 0:03:01]}
4. Nxd4 {[%clk 0:02:54.1]} 4... Nf6 {[%clk 0:03:01.2]} 5. Nc3 {[%clk 0:02:53.9]}
5... a6 {[%clk 0:03:01.3]} 6. Bg5 {[%clk 0:02:54.5]} 6... e6 {[%clk 0:03:00.8]}
7. f4 {[%clk 0:02:54.7]} 7... h6 {[%clk 0:02:59.6]} 8. Bxf6 {[%clk 0:02:54.3]}
8... Qxf6 {[%clk 0:02:59.1]} 9. Qd2 {[%clk 0:02:54.6]} 9... Nc6 {[%clk
0:02:59.3]} 10. Nf3 {[%clk 0:02:53.1]} 10... g5 {[%clk 0:02:57.8]} 11. fxg5
{[%clk 0:02:51.9]} 11... hxg5 {[%clk 0:02:57.8]} 12. Qxg5 {[%clk 0:02:51.8]}
12... Qxg5 {[%clk 0:02:55.7]} 13. Nxg5 {[%clk 0:02:52.1]} 13... Bh6 {[%clk
0:02:49.5]} 14. Nf3 {[%clk 0:02:52]} 14... b5 {[%clk 0:02:42.6]} 15. a3 {[%clk
0:02:51.5]} 15... Bb7 {[%clk 0:02:42.3]} 16. Rd1 {[%clk 0:02:49.5]} 16... Ke7
{[%clk 0:02:40.7]} 17. Bd3 {[%clk 0:02:42.6]} 17... Rac8 {[%clk 0:02:36.3]} 18.
O-O {[%clk 0:02:41.3]} 18... Be3+ {[%clk 0:02:34.7]} 19. Kh1 {[%clk 0:02:41.2]}
19... Rh6 {[%clk 0:02:25.7]} 20. Rde1 {[%clk 0:02:19.8]} 20... Bb6 {[%clk
0:02:21.6]} 21. e5 {[%clk 0:02:17.2]} 21... Nxe5 {[%clk 0:02:14.2]} 22. Nxe5
{[%clk 0:02:15.9]} 22... dxe5 {[%clk 0:02:14.1]} 23. Be4 {[%clk 0:02:06.6]}
23... Bxe4 {[%clk 0:01:46.5]} 24. Rxe4 {[%clk 0:01:57.7]} 24... Bd4 {[%clk
0:01:44.4]} 25. Rf3 {[%clk 0:01:56.8]} 25... f5 {[%clk 0:01:43]} 26. Re2 {[%clk
0:01:53.2]} 26... e4 {[%clk 0:01:36.4]} 27. Rg3 {[%clk 0:01:51.1]} 27... Be5
{[%clk 0:01:29.6]} 28. Rh3 {[%clk 0:01:45.8]} 28... Rxh3 {[%clk 0:01:28.4]} 29.
gxh3 {[%clk 0:01:46.2]} 29... Bxc3 {[%clk 0:01:28.5]} 0-1

[Event "Late-Titled-Tuesday-Blitz-January-16-2024"]
[Site "Chess.com"]
[Date "2024.01.16"]
[Round "7"]
[White "nindjaxx8"]
[Black "Godzillator"]
[Result "1-0"]
[WhiteElo "2553"]
[BlackElo "2332"]
[TimeControl "180+1"]
[EndTime "15:14:38 PST"]
[Termination "nindjaxx8 won by resignation"]

1. d3 {[%clk 0:02:34.6]} 1... d5 {[%clk 0:02:59.3]} 2. Nf3 {[%clk 0:02:33.1]}
2... Nf6 {[%clk 0:02:58.9]} 3. Bf4 {[%clk 0:02:30.7]} 3... c6 {[%clk 0:02:58.1]}
4. Nbd2 {[%clk 0:02:30.8]} 4... Bg4 {[%clk 0:02:58]} 5. e3 {[%clk 0:02:27.8]}
5... Nbd7 {[%clk 0:02:56.9]} 6. Be2 {[%clk 0:02:26.6]} 6... e6 {[%clk
0:02:53.2]} 7. O-O {[%clk 0:02:25.5]} 7... Be7 {[%clk 0:02:51.1]} 8. d4 {[%clk
0:02:25.2]} 8... O-O {[%clk 0:02:50.6]} 9. c4 {[%clk 0:02:25.1]} 9... Re8 {[%clk
0:02:47.5]} 10. Rc1 {[%clk 0:02:23.9]} 10... Bf8 {[%clk 0:02:46.4]} 11. h3
{[%clk 0:02:24.2]} 11... Bh5 {[%clk 0:02:46.3]} 12. cxd5 {[%clk 0:02:23.8]}
12... exd5 {[%clk 0:02:45.7]} 13. Ne5 {[%clk 0:02:20.8]} 13... Bxe2 {[%clk
0:02:44.6]} 14. Qxe2 {[%clk 0:02:20.6]} 14... Nxe5 {[%clk 0:02:43.5]} 15. Bxe5
{[%clk 0:02:21.5]} 15... Nd7 {[%clk 0:02:40.3]} 16. Bg3 {[%clk 0:02:20.6]} 16...
f5 {[%clk 0:02:40.3]} 17. Qd3 {[%clk 0:02:19.4]} 17... g6 {[%clk 0:02:38.9]} 18.
a3 {[%clk 0:02:19]} 18... Nf6 {[%clk 0:02:38.7]} 19. b4 {[%clk 0:02:18.7]} 19...
Ne4 {[%clk 0:02:39]} 20. Nxe4 {[%clk 0:02:18.3]} 20... fxe4 {[%clk 0:02:38.9]}
21. Qb3 {[%clk 0:02:18.2]} 21... a6 {[%clk 0:02:38.9]} 22. a4 {[%clk 0:02:15.2]}
22... Qb6 {[%clk 0:02:38.6]} 23. Rb1 {[%clk 0:02:13.8]} 23... Ra7 {[%clk
0:02:20]} 24. Rfc1 {[%clk 0:02:12.9]} 24... Rea8 {[%clk 0:02:19.6]} 25. Be5
{[%clk 0:02:06.7]} 25... a5 {[%clk 0:02:18.8]} 26. b5 {[%clk 0:02:05.8]} 26...
Bb4 {[%clk 0:02:08.5]} 27. Rc2 {[%clk 0:02:00]} 27... cxb5 {[%clk 0:02:08.2]}
28. Qxd5+ {[%clk 0:01:59.2]} 28... Kf8 {[%clk 0:02:08.2]} 29. Rc7 {[%clk
0:01:49.2]} 29... Be7 {[%clk 0:02:03]} 30. Bg7+ {[%clk 0:01:35.8]} 30... Kxg7
{[%clk 0:01:56.6]} 31. Rxe7+ {[%clk 0:01:34.3]} 31... Kh6 {[%clk 0:01:55.9]} 32.
Qf7 {[%clk 0:01:28.2]} 32... Qd6 {[%clk 0:01:46.4]} 33. Qxh7+ {[%clk 0:01:27]}
33... Kg5 {[%clk 0:01:46.8]} 34. Rxb5+ {[%clk 0:01:22.4]} 1-0

[Event "Late-Titled-Tuesday-Blitz-January-16-2024"]
[Site "Chess.com"]
[Date "2024.01.16"]
[Round "7"]
[White "FMOlexandrProhorov"]
[Black "milenapn"]
[Result "1-0"]
[WhiteElo "2327"]
[BlackElo "2005"]
[TimeControl "180+1"]
[EndTime "15:14:43 PST"]
[Termination "FMOlexandrProhorov won by resignation"]

1. d4 {[%clk 0:02:59.8]} 1... Nf6 {[%clk 0:02:58.7]} 2. c4 {[%clk 0:02:59.5]}
2... g6 {[%clk 0:02:58.7]} 3. Nc3 {[%clk 0:02:59.7]} 3... d5 {[%clk 0:02:58.8]}
4. cxd5 {[%clk 0:02:59.4]} 4... Nxd5 {[%clk 0:02:59.7]} 5. Na4 {[%clk
0:02:59.7]} 5... Bg7 {[%clk 0:02:57.7]} 6. e4 {[%clk 0:02:59.4]} 6... Nb6 {[%clk
0:02:56.2]} 7. Nf3 {[%clk 0:02:59.3]} 7... O-O {[%clk 0:02:51.8]} 8. Be3 {[%clk
0:02:58.6]} 8... Bd7 {[%clk 0:02:49.4]} 9. Nc5 {[%clk 0:02:57]} 9... Bc8 {[%clk
0:02:40]} 10. Be2 {[%clk 0:02:54.2]} 10... Nc6 {[%clk 0:02:19.2]} 11. h3 {[%clk
0:02:50.5]} 11... e5 {[%clk 0:02:06.3]} 12. d5 {[%clk 0:02:48.9]} 12... Nd4
{[%clk 0:02:05.9]} 13. Nxd4 {[%clk 0:02:47]} 13... exd4 {[%clk 0:02:06.3]} 14.
Bxd4 {[%clk 0:02:46.3]} 14... Bxd4 {[%clk 0:02:04.6]} 15. Qxd4 {[%clk
0:02:47.2]} 15... c6 {[%clk 0:02:05.2]} 16. d6 {[%clk 0:02:34.9]} 16... Re8
{[%clk 0:01:54]} 17. O-O {[%clk 0:02:34.4]} 17... Nd7 {[%clk 0:01:46.8]} 18.
Rad1 {[%clk 0:02:28.1]} 18... Qg5 {[%clk 0:01:44.4]} 19. Nxd7 {[%clk 0:02:21.2]}
19... Bxd7 {[%clk 0:01:45.3]} 20. f4 {[%clk 0:02:21.3]} 20... Qa5 {[%clk
0:01:43.7]} 21. a3 {[%clk 0:02:18.3]} 21... c5 {[%clk 0:01:40.2]} 22. Qd3 {[%clk
0:02:07.7]} 22... Bc6 {[%clk 0:01:37.9]} 23. Bf3 {[%clk 0:02:06.7]} 23... b5
{[%clk 0:01:34.1]} 24. e5 {[%clk 0:02:04.1]} 24... Bxf3 {[%clk 0:01:31.7]} 25.
Qxf3 {[%clk 0:02:03.8]} 25... Qb6 {[%clk 0:01:32.6]} 26. Qd5 {[%clk 0:01:54.7]}
26... a5 {[%clk 0:01:28.7]} 27. f5 {[%clk 0:01:52.6]} 27... c4+ {[%clk
0:01:20.8]} 28. Kh1 {[%clk 0:01:52.1]} 28... Qe3 {[%clk 0:01:18.8]} 29. Rde1
{[%clk 0:01:49.7]} 29... Qg3 {[%clk 0:01:18.3]} 30. e6 {[%clk 0:01:42.3]} 1-0

[Event "Late-Titled-Tuesday-Blitz-January-16-2024"]
[Site "Chess.com"]
[Date "2024.01.16"]
[Round "7"]
[White "NoHeThTo"]
[Black "tptagain"]
[Result "0-1"]
[WhiteElo "2709"]
[BlackElo "2954"]
[TimeControl "180+1"]
[EndTime "15:14:47 PST"]
[Termination "tptagain won by resignation"]

1. d4 {[%clk 0:03:00.9]} 1... d5 {[%clk 0:02:59.9]} 2. Nc3 {[%clk 0:03:00.3]}
2... e6 {[%clk 0:03:00.5]} 3. Bf4 {[%clk 0:03:00.1]} 3... Bb4 {[%clk 0:02:59.5]}
4. Qd3 {[%clk 0:02:57.4]} 4... c5 {[%clk 0:02:55.3]} 5. a3 {[%clk 0:02:55]} 5...
c4 {[%clk 0:02:50.3]} 6. Qg3 {[%clk 0:02:53.9]} 6... Bxc3+ {[%clk 0:02:50.3]} 7.
Qxc3 {[%clk 0:02:54.8]} 7... Nc6 {[%clk 0:02:44.8]} 8. Nf3 {[%clk 0:02:52.8]}
8... Nf6 {[%clk 0:02:44.8]} 9. Ne5 {[%clk 0:02:53]} 9... Ne4 {[%clk 0:02:43.6]}
10. Nxc6 {[%clk 0:02:40.7]} 10... bxc6 {[%clk 0:02:43.5]} 11. Qb4 {[%clk
0:02:36.2]} 11... a5 {[%clk 0:02:24.6]} 12. Qa4 {[%clk 0:02:28.3]} 12... Qb6
{[%clk 0:02:23.4]} 13. f3 {[%clk 0:02:22.3]} 13... Qxb2 {[%clk 0:01:51.5]} 14.
Qxc6+ {[%clk 0:02:14.4]} 14... Bd7 {[%clk 0:01:51.4]} 15. Qxa8+ {[%clk
0:01:59.7]} 15... Ke7 {[%clk 0:01:51.6]} 16. Bd6+ {[%clk 0:01:37.5]} 16... Kf6
{[%clk 0:01:15.2]} 17. Be5+ {[%clk 0:01:34.4]} 17... Kg6 {[%clk 0:01:15]} 18.
fxe4 {[%clk 0:01:27.2]} 18... Qxa1+ {[%clk 0:01:13.7]} 19. Kf2 {[%clk
0:01:26.9]} 19... Rxa8 {[%clk 0:01:13.6]} 20. exd5 {[%clk 0:01:27.1]} 20... exd5
{[%clk 0:01:08.5]} 21. e3 {[%clk 0:01:26.7]} 21... Qc3 {[%clk 0:01:07.8]} 22. h4
{[%clk 0:01:26.5]} 22... Qxc2+ {[%clk 0:01:05.2]} 23. Kg3 {[%clk 0:01:26.6]}
23... h5 {[%clk 0:01:03.7]} 0-1

[Event "Late-Titled-Tuesday-Blitz-January-16-2024"]
[Site "Chess.com"]
[Date "2024.01.16"]
[Round "7"]
[White "RuleOfTwo"]
[Black "RCone"]
[Result "1-0"]
[WhiteElo "2578"]
[BlackElo "2434"]
[TimeControl "180+1"]
[EndTime "15:14:55 PST"]
[Termination "RuleOfTwo won on time"]

1. d4 {[%clk 0:03:00.9]} 1... g6 {[%clk 0:00:48.1]} 2. Nc3 {[%clk 0:02:59]} 2...
Bg7 {[%clk 0:00:48.2]} 3. h4 {[%clk 0:02:59.6]} 3... d6 {[%clk 0:00:49]} 4. h5
{[%clk 0:02:56.1]} 4... Nf6 {[%clk 0:00:47.2]} 5. h6 {[%clk 0:02:55.8]} 5... Bf8
{[%clk 0:00:47.3]} 6. Bg5 {[%clk 0:02:55.9]} 6... Nbd7 {[%clk 0:00:45]} 7. e4
{[%clk 0:02:52.7]} 7... c6 {[%clk 0:00:42.9]} 8. Nf3 {[%clk 0:02:52.6]} 8... Qa5
{[%clk 0:00:37.9]} 9. Qd2 {[%clk 0:02:49.9]} 9... e6 {[%clk 0:00:17.7]} 10. Bd3
{[%clk 0:02:45.5]} 10... e5 {[%clk 0:00:15.8]} 11. O-O-O {[%clk 0:02:39.3]}
11... Be7 {[%clk 0:00:14.8]} 12. Kb1 {[%clk 0:02:37.6]} 12... O-O {[%clk
0:00:13.1]} 13. dxe5 {[%clk 0:02:32.7]} 13... dxe5 {[%clk 0:00:13.7]} 14. Nd5
{[%clk 0:02:19.5]} 14... Qd8 {[%clk 0:00:13.7]} 15. Nxe7+ {[%clk 0:02:19.1]}
15... Qxe7 {[%clk 0:00:14.4]} 16. Bc4 {[%clk 0:02:07.9]} 16... b5 {[%clk
0:00:10.5]} 17. Bb3 {[%clk 0:02:07.4]} 1-0